Cogmind - Beta 13 @@@ ROGUE MODE // 2024.03.01 @ 16:15:49 Player: StarSirius Result: Destroyed by RP-TRV(R) with Subdweller Shrapnel Launcher Performance ------------- Evolutions (0) 0 Regions Visited (2) 400 Robots Destroyed (13) 65 Value Destroyed (375) 375 Prototype IDs (0) 0 Alien Tech Used (0) 0 Bonus (0) 0 TOTAL SCORE: 840 Bonus ------- None Cogmind --------- Core Integrity 0/250 Matter 261/300 Energy 200/200 System Corruption 0% Temperature Cool (0) Movement Rolling (105) Ox1 Location -10/Subcaves Parts ------- > --- POWER (1) -------- Subdweller Power Source > --- PROPULSION (2) --- Wheel Compact Wheel > --- UTILITY (2) ------ Large Storage Unit Signal Interpreter > --- WEAPON (2) ------- Small Laser Small Laser > --- INVENTORY (15) --- Ion Engine Light Ion Engine Heat Sink Small Storage Unit Subdweller Optics Sensor Array Terrain Scanner Scrap Shield Riot Gun Small Laser Light Assault Rifle Makeshift Shrapnel Gun Peak State ------------ > --- POWER ------------ Subdweller Power Source > --- PROPULSION ------- Wheel Compact Wheel > --- UTILITY ---------- Large Storage Unit Signal Interpreter > --- WEAPON ----------- Small Laser Small Laser > --- INVENTORY -------- Ion Engine Light Ion Engine Heat Sink Small Storage Unit Subdweller Optics Sensor Array Terrain Scanner Scrap Shield Riot Gun Small Laser Light Assault Rifle Makeshift Shrapnel Gun [Rating: 10] Favorites ----------- Power Ion Engine Engine Ion Engine Propulsion Aluminum Leg Leg Aluminum Leg Wheel Compact Wheel Utility Small Storage Unit Device Heat Sink Storage Small Storage Unit Processor Signal Interpreter Weapon Small Laser Energy Gun Small Laser Ballistic Gun Light Assault Rifle Build | -11 -10 -10 ------- Run | Yrd Mat Sub Slots Evolved . | . . . Power . | . . . Propulsion . | . . . Utility . | . . . Weapon . | . . . Parts Attached 31 | 6 22 3 Power 6 | 1 3 2 Engine 6 | 1 3 2 Core . | . . . Reactor . | . . . Propulsion 11 | 2 9 . Treads . | . . . Leg 9 | 2 7 . Wheel 2 | . 2 . Hover . | . . . Flight . | . . . Utility 7 | 1 5 1 Device 2 | . 2 . Storage 4 | 1 2 1 Processor 1 | . 1 . Hackware . | . . . Protection . | . . . Artifact . | . . . Weapon 7 | 2 5 . Energy Gun 6 | 1 5 . Energy Cannon . | . . . Ballistic Gun 1 | 1 . . Ballistic Cannon . | . . . Launcher . | . . . Special Weapon . | . . . Impact Weapon . | . . . Slashing Weapon . | . . . Piercing Weapon . | . . . Special Melee Weapon . | . . . Unidentified Prototypes . | . . . Parts Lost . | . . . Power . | . . . Propulsion . | . . . Utility . | . . . Weapon . | . . . Highest Loss Streak . | . . . To Critical Strikes . | . . . Average Slot Usage (%) 95 | . 94 100 Engine 13 | . 13 14 Leg 20 | . 24 . Wheel 6 | . 3 28 Device 5 | . 6 . Storage 14 | . 14 14 Processor 5 | . 4 14 Energy Gun 24 | . 23 28 Ballistic Gun 2 | . 3 . Naked Turns . | . . . Heaviest Build 27 | 11 14 27 Greatest Support 26 | 20 26 26 Greatest Overweight (x) 3 | . 3 1 Average Overweight (x) . | . . . Largest Inventory Capacity 15 | 8 15 15 Average Capacity 8 | 7 8 14 Most Carried 13 | 6 8 13 Average Carried 7 | 4 7 10 Final Capacity 15 | 8 8 15 Final Carried 13 | 6 7 13 Class Distribution -------------------- 85% | Mutant 14% | Scavenger-Mutant Dominant Class ---------------- Mutant | -10/Materials Mutant | -10/Subcaves Resources | -11 -10 -10 ----------- Run | Yrd Mat Sub Matter Collected 496 | 237 259 . Remotely . | . . . Salvage Created 508 | . 508 . Parts 30 | . 30 . Haulers Intercepted . | . . . Recyclers Shooed . | . . . Parts Field Recycled . | . . . Retrieved Matter . | . . . Parts Self-Destructed . | . . . Prevented . | . . . Kills | -11 -10 -10 ------- Run | Yrd Mat Sub Combat Hostiles Destroyed 10 | . 10 . Guns 10 | . 10 . Classes Destroyed 4 | . 4 . Worker 1 | . 1 . Builder 1 | . 1 . Operator 1 | . 1 . Grunt 10 | . 10 . Best Kill Streak 3 | . 3 . Combat Bots Only 3 | . 3 . Max Kills in Single Turn 1 | . 1 . Gunslinging . | . . . Exploded . | . . . Melee . | . . . Uniques/NPCs Destroyed . | . . . Combat | -11 -10 -10 -------- Run | Yrd Mat Sub Hostile Shots Fired 79 | . 74 5 Missed 24 | . 22 2 Damage Taken 843 | . 619 224 Core 251 | . 176 75 Absorbed by Shields . | . . . Regen/Repaired (Parts) 23 | . 23 . Core Remaining (%) 100 | 100 . . Volleys Fired 65 | . 65 . Largest 2 | . 2 . Hottest 80 | . 80 . Shots Fired 122 | . 122 . Gun 122 | . 122 . Cannon . | . . . Launcher . | . . . Special . | . . . Kinetic 25 | . 25 . Thermal 97 | . 97 . Explosive . | . . . Electromagnetic . | . . . Robot Hit Streak 10 | . 10 . Robot Miss Streak 3 | . 3 . Penetration Max . | . . . Secondary Targets . | . . . Shots Hit Robots 86 | . 86 . Core Hits 30 | . 30 . Critical Kills . | . . . Critical Parts Destroyed . | . . . Critical Strikes 2 | . 2 . Burn 2 | . 2 . Melee Attacks . | . . . Impact . | . . . Slashing . | . . . Piercing . | . . . Sneak Attacks . | . . . Combat Hostiles . | . . . Follow-up Attacks . | . . . Damage Inflicted 939 | . 939 . Guns 939 | . 939 . Cannons . | . . . Explosions . | . . . Melee . | . . . Ramming . | . . . Kinetic 157 | . 157 . Thermal 782 | . 782 . Explosive . | . . . Electromagnetic . | . . . Impact . | . . . Slashing . | . . . Piercing . | . . . Highest Corruption . | . . . Average Corruption . | . . . Corruption Purged . | . . . Corruption Blocked . | . . . Overload Shots . | . . . Overflow Damage . | . . . Projectiles . | . . . Explosions . | . . . Melee . | . . . Knockbacks . | . . . Impact . | . . . Kinetic . | . . . Secondary . | . . . Self-Inflicted Damage . | . . . Shots . | . . . Rammed . | . . . Targets Rammed . | . . . Kicked . | . . . Crushed . | . . . Highest Temperature 346 | . 346 . Average Temperature 101 | . 101 . Received Heat Transfer 363 | . 363 . Siege Activations . | . . . Robots Corrupted . | . . . Combat Hostiles . | . . . Parts Fried . | . . . Impact Corruptions . | . . . Robots Melted . | . . . Combat Hostiles . | . . . Parts Melted 5 | . 5 . Heat Transferred 2124 | . 2124 . Parts Sabotaged . | . . . Parts Stolen . | . . . Parts Stripped . | . . . Power Chain Reactions . | . . . Alert | -11 -10 -10 ------- Run | Yrd Mat Sub Peak Influence 229 | . 229 . Initial . | . . . Average 85 | . 94 . Maximum Alert Level 1 | . 1 . Low Security (%) 94 | 100 93 . Level 1 5 | . 6 . Level 2 . | . . . Level 3 . | . . . Level 4 . | . . . Level 5 . | . . . High Security . | . . . Max Security . | . . . Squads Dispatched 5 | . 5 . Investigation 2 | . 2 . Extermination . | . . . Reinforcement 3 | . 3 . Assault . | . . . Garrison . | . . . Intercept . | . . . Searches Triggered . | . . . Construction Impeded . | . . . Haulers Reinforced . | . . . Active Scanning Responses . | . . . Cargo Convoy Interrupts . | . . . Stealth | -11 -10 -10 --------- Run | Yrd Mat Sub Distress Signals 5 | . 5 . Communications Jammed . | . . . Distress Signals . | . . . Times Spotted 32 | . 25 7 Peak Tracking Total 6 | . 5 6 Tactical Retreats 3 | . 3 . Traps | -11 -10 -10 ------- Run | Yrd Mat Sub Traps Triggered 4 | . 4 . Indirectly . | . . . Trap Hack Attempts . | . . . Triggered . | . . . Disarmed . | . . . Reprogrammed . | . . . Reused . | . . . Traps Extracted . | . . . Installed . | . . . Triggered . | . . . Machines | -11 -10 -10 ---------- Run | Yrd Mat Sub Machines Disabled . | . . . Max in Single Turn . | . . . Machines Repaired . | . . . Machines Dismantled . | . . . Machines Sabotaged . | . . . Overloaded Fab Kills . | . . . Hacking | -11 -10 -10 --------- Run | Yrd Mat Sub Machines Accessed 5 | . 5 . Terminals 3 | . 3 . Fabricators . | . . . Repair Stations 1 | . 1 . Recycling Units 1 | . 1 . Scanalyzers . | . . . Garrison Access . | . . . Total Hacks 13 | . 13 . Successful 8 | . 8 . Failed 5 | . 5 . Catastrophic 1 | . 1 . Database Lockouts . | . . . Manual 8 | . 8 . Terminals 8 | . 8 . Fabricators . | . . . Repair Stations 3 | . 3 . Recycling Units 2 | . 2 . Scanalyzers . | . . . Garrison Access . | . . . Terminal Hacks 1 | . 1 . Terminal Index 1 | . 1 . Fabricator Hacks . | . . . Repair Station Hacks 2 | . 2 . Scan Component 1 | . 1 . Repair 1 | . 1 . Recycling Unit Hacks 2 | . 2 . Report Inventory 1 | . 1 . Retrieve Components 1 | . 1 . Scanalyzer . | . . . Garrison Access Hacks . | . . . Unauthorized Hacks 3 | . 3 . Terminals 3 | . 3 . Botnet 3 | . 3 . Fabricators . | . . . Repair Stations . | . . . Recycling Units . | . . . Scanalyzers . | . . . Garrison Access . | . . . Data Cores Recovered . | . . . Used . | . . . Hacking Detections 5 | . 5 . Full Trace Events 1 | . 1 . Feedback Events . | . . . Feedback Blocked . | . . . Robot Schematics Acquired . | . . . Robots Built . | . . . Authchips . | . . . Time . | . . . Total Robot Build Rating . | . . . Part Schematics Acquired . | . . . Parts Built . | . . . Authchips . | . . . Time . | . . . Total Part Build Rating . | . . . Parts Repaired 1 | . 1 . Time 26 | . 26 . Parts Recycled . | . . . Recycled Matter . | . . . Retrieved Matter . | . . . Retrieved Components 3 | . 3 . Parts Scanalyzed . | . . . Part Schematics Acquired . | . . . Parts Damaged . | . . . Bothacking | -11 -10 -10 ------------ Run | Yrd Mat Sub Used RIF Installer . | . . . Robots Hacked . | . . . Non-combat . | . . . Combat . | . . . Robot Hacks Applied . | . . . Relay Couplers Released . | . . . Fabnet Peak Effective % . | . . . Robots Rewired . | . . . Allies Hacked . | . . . Hacks Repelled . | . . . Allies | -11 -10 -10 -------- Run | Yrd Mat Sub Total Allies . | . . . Largest Group . | . . . Highest-Rated Group . | . . . Highest-Rated Ally . | . . . Total Orders . | . . . Ally Attacks . | . . . Total Damage . | . . . Kills . | . . . Allies Corrupted . | . . . Allies Melted . | . . . Intel | -11 -10 -10 ------- Run | Yrd Mat Sub Robot Analysis Total . | . . . Derelict Logs Recovered 1 | . . 1 Drone Launches . | . . . Drone Recoveries . | . . . Exploration | -11 -10 -10 ------------- Run | Yrd Mat Sub Turns Passed 1244 | 93 967 184 Spaces Moved 817 | 84 589 144 Core 37 | 31 6 . Treads . | . . . Legs 549 | 53 496 . Wheels 231 | . 87 144 Hover . | . . . Flight . | . . . Fastest Speed 50 | 50 90 90 Average Speed 110 | 94 116 94 Slowest Speed 200 | 120 200 105 Overloaded Moves . | . . . Propulsion Burnouts . | . . . Robots Hopped . | . . . Cave-ins Triggered . | . . . Exploration Rate (%) 26 | 5 64 9 Regions Visited 2 Branch Regions 1 Pre-discovered Areas 1 | . . 1 Known Exits Taken 1 | . 1 . Unknown Exits Taken 1 | 1 . . Scrap Searched . | . . . Spaces Dug . | . . . Terrain Destroyed . | . . . Melee . | . . . Projectile . | . . . AOE . | . . . Terrain Rammed . | . . . Walls Destroyed . | . . . Machines Disabled . | . . . Actions | -11 -10 -10 --------- Run | Yrd Mat Sub Total 1035 | 95 750 190 Wait 95 | . 56 39 Move 815 | 83 588 144 Hop . | . . . Pick Up 16 | 6 6 4 Fast Attach 17 | 6 11 . Attach 3 | . 3 . Detach 1 | . 1 . Swap 11 | . 8 3 Drop 12 | . 12 . Fire 65 | . 65 . Melee . | . . . Ram . | . . . Kick . | . . . Crush . | . . . Escape Stasis . | . . . Rewire . | . . . Trap . | . . . Miscellaneous . | . . . Route ------- -11/Scrapyard -10/Materials (discovered 2 exits: *Min / *Sub) -10/Subcaves (discovered 1 exit: *Mat) History --------- Turn | Location | Event 3 | -11/Scrapyard | Discovered new exit (range 15) 94 | -11/Scrapyard | Entered Materials 320 | -10/Materials | Build established: Mutant 413 | -10/Materials | Discovered new exit (range 10) 560 | -10/Materials | Repaired Heat Sink 616 | -10/Materials | Core integrity fell below 50% 781 | -10/Materials | Identified exit to Mines 1052 | -10/Materials | Discovered new exit (range 6) 1061 | -10/Materials | Identified exit to Subcaves 1061 | -10/Materials | Entered Subcaves 1068 | -10/Subcaves | Learned location of Storage (-7) 1070 | -10/Subcaves | Discovered new exit (range 7) 1086 | -10/Subcaves | Identified exit to Materials 1094 | -10/Subcaves | Shifting Twisted Machinery released Mak. Shrapnel Gun 1094 | -10/Subcaves | Shifting Twisted Machinery released Riot Gun 1139 | -10/Subcaves | Shifting Twisted Machinery released Sub. Optics 1172 | -10/Subcaves | Shifting Twisted Machinery released Sub. Power Source 1191 | -10/Subcaves | Ambushed by swarm of Subdwellers 1244 | -10/Subcaves | Core integrity fell below 20% 1245 | -10/Subcaves | Destroyed by RP-TRV(R) with Subdweller Shrapnel Launcher Last Messages --------------- 01100_ Acquired Riot Gun. Sub. Optics falls loose from the Twisted Machinery. 01153_ Acquired Mak. Shrapnel Gun. 01167_ Acquired Sub. Optics. Sub. Power Source falls loose from the Twisted Machinery. 01191_ A3-PX5(h): "The Subs are coming!" 01193_ AG-HEI(R) emerges from the Twisted Machinery. 01193_ UN-UIE(g): "Sorry we're late! Had another grouchy Sub to deal with. Who's the new fellow?" 01194_ KI-0B3(R) emerges from the Twisted Machinery. 01194_ FZ-ZSC(R) emerges from the Twisted Machinery. 01196_ AG-HEI(R) suffers critical hit (Destroy). 01196_ AG-HEI(R) destroyed. 01199_ HV Slug penetrates GC-LGT(R). 01199_ GC-LGT(R) suffers critical hit (Destroy). 01199_ GC-LGT(R) knocked back. 01202_ HV Slug penetrates Twisted Machinery. 01204_ RP-TRV(R) affixes Scrap Shield Fragment to Scrap Shield. 01204_ FZ-ZSC(R) destroyed. 01204_ PF-D17(g) destroyed. Map ----- +----------------------------------------------------+ | ?????????????????????????????????????????????????? | | ?????????????????????????????????????????????????? | | ?????????????????????????????????????????????????? | | ?????????????????????????????????????????????????? | | ?????????????????????????????????????????????????? | | ?????????????????????????????????????????????????? | | ?????????????????????????????????????????????????? | | ?????????????????????????????????????????????????? | | ?????????????????????????????????????????????????? | | ?????????????????????????????????????????????????? | | ?????????????????????????????????????????????????? | | ?????????????????????????????????????????????????? | | ?????????###?????????????????????????????????????? | | ????????## #?????????????????####???????????????? | | ????????# #????????######### ###?????????????? | | ????????# ##?????###" ##" ##????????????? | | ????????# #????## "" " #????????????? | | ????????# #???## "" " ##????????????? | | ?????????# ??## " ##????????????? | | ????????## " "??## "" #### #????????????? | | ????????# ""#### " " ##?## #????????????? | | ????????# ""< ##"# ###??# ##?????????##? | | ?????????#"" ####### "###### #???????? ## | | ?????????# "# #?#### # ## ##?????? # | | ????????## ##### ####" ;; ;; "#####?# | | ????????# # # ### @ " ## | | ????????# ## ; " #?? | | ???????## # # #####; R ### | | ??????## ###?# ???##; R ## | | ??????# ##??## ?? ##; ;;# ##" ## | | ??????# ##???# ##; ; ## # "" # # | | ??????# ##### #?## ;;# ### ## ##??? | | ??????## #??# ######### #"" #??? | | ???????# #??###??????#" "" #??? | | ???????# #???????????# * "" #?? | | ???????## #???????????# %&%] " " | | ????????### ##???????????#" """% % " | | ??????????## ###????????????###"" "" % " | | ???????????# #????????????????#####" | | ??????????? ## #????????????????????" | | ??????????? #? #????????????????????# | | ??????????### #?? #?????????????????????# ? | | ????????????###?? #?????????????????????? ? | | ??????????????????##??????????????????????? ? | | ??????????????????????????????????????????? | | ???????????????????????????????????????????? | | ?????????????????????????????????????????????? ?? | | ?????????????????????????????????????????????????? | | ?????????????????????????????????????????????????? | | ?????????????????????????????????????????????????? | +----------------------------------------------------+ Best States ------------- Heat Dissipation 35 Energy Generation 15 Energy Capacity 250 Matter Stores 300 Matter Capacity 300 Sight Range 16 Terrain Scan Density 10 Evasion (%) 55 Item Schematics ----------------- None Robot Schematics ------------------ None Fabricated ------------ Nothing Alien Tech Used ----------------- None Achievements -------------- None Challenges ------------ None Game ------ Seed CoreDataRay Manual? 0 Play Time 00:35:12 Cumulative 67.6 hours Start 2024.03.01 @ 15:36:03 End 2024.03.01 @ 16:15:49 Sessions 2 Manual Loads 0 Difficulty Rogue Special Mode None Game No. 59 Rogue 59 Adventurer 0 Explorer 0 Win Type - Total 2 Types 2/0/0/0/0/0/0/0/0 Lore% 24 Gallery% 38 Achievement% 29 Wizard Run 0 Options --------- Layout 0 ASCII 0 Keyboard 0 Movement Numpad Keybinds 1 Fullscreen 2 Font 18/X11 Map View 76x50 Zoom Use 19% Tactical HUD 1 Map Filters NONE Filters BRIGHTNESS(115)|SATURATION(100)|LOW_CONTRAST(0,16,30) Steam 1 RUN: bfb70be4-cdd9-47bb-8079-67490efe6de0